[Event "*** Titled Tuesday 3|2 Blitz"]
[Site "Chess.com"]
[Date "2016.05.03"]
[Round "5"]
[White "Makalexa"]
[Black "FLchessplayer"]
[Result "1-0"]
[WhiteElo "2082"]
[BlackElo "2070"]
[TimeControl "180+2"]
[EndTime "11:59:31 PDT"]
[Termination "Makalexa won by resignation"]

1. e4 {[%clk 0:02:49.3]} 1... c5 {[%clk 0:02:34.7]} 2. Nf3 {[%clk 0:02:49.8]}
2... d6 {[%clk 0:02:35.7]} 3. d4 {[%clk 0:02:50.5]} 3... cxd4 {[%clk 0:02:36.5]}
4. Nxd4 {[%clk 0:02:51.7]} 4... Nf6 {[%clk 0:02:37.7]} 5. Nc3 {[%clk 0:02:52.5]}
5... g6 {[%clk 0:02:39]} 6. Be3 {[%clk 0:02:49.6]} 6... Bg7 {[%clk 0:02:40]} 7.
f3 {[%clk 0:02:49.7]} 7... O-O {[%clk 0:02:40.9]} 8. Qd2 {[%clk 0:02:50.5]} 8...
Nc6 {[%clk 0:02:41.9]} 9. O-O-O {[%clk 0:02:51]} 9... d5 {[%clk 0:02:43.1]} 10.
Kb1 {[%clk 0:02:06.7]} 10... e6 {[%clk 0:02:39.8]} 11. g4 {[%clk 0:02:03.2]}
11... Bd7 {[%clk 0:02:36.1]} 12. g5 {[%clk 0:02:02.7]} 12... Nh5 {[%clk
0:02:36.3]} 13. exd5 {[%clk 0:02:02.3]} 13... Nxd4 {[%clk 0:02:32.7]} 14. Bxd4
{[%clk 0:02:02.7]} 14... Bxd4 {[%clk 0:02:33.7]} 15. Qxd4 {[%clk 0:02:02.1]}
15... Qxg5 {[%clk 0:02:34.3]} 16. Rg1 {[%clk 0:01:56.6]} 16... Qf4 {[%clk
0:02:28.6]} 17. Qc5 {[%clk 0:01:37.1]} 17... Rfc8 {[%clk 0:02:25.1]} 18. Qe7
{[%clk 0:01:37.6]} 18... Qxh2 {[%clk 0:02:09.8]} 19. Bd3 {[%clk 0:01:23.3]}
19... Be8 {[%clk 0:02:02.7]} 20. dxe6 {[%clk 0:01:20.5]} 20... Qf4 {[%clk
0:02:03.1]} 21. Nd5 {[%clk 0:01:01.8]} 21... Qxf3 {[%clk 0:01:58.5]} 22. Nc7
{[%clk 0:01:00.3]} 22... Rxc7 {[%clk 0:01:54.2]} 23. Qxc7 {[%clk 0:00:59.3]}
23... fxe6 {[%clk 0:01:54.8]} 24. Rdf1 {[%clk 0:00:50.3]} 24... Qc6 {[%clk
0:01:49]} 25. Qe7 {[%clk 0:00:50.7]} 25... Bd7 {[%clk 0:01:36.8]} 26. Bxg6
{[%clk 0:00:50.9]} 1-0

[Event "*** Titled Tuesday 3|2 Blitz"]
[Site "Chess.com"]
[Date "2016.05.03"]
[Round "5"]
[White "YuriyKrykun"]
[Black "ArnaudovP"]
[Result "0-1"]
[WhiteElo "2287"]
[BlackElo "2410"]
[TimeControl "180+2"]
[EndTime "11:59:55 PDT"]
[Termination "ArnaudovP won by resignation"]

1. Nf3 {[%clk 0:02:52.9]} 1... Nf6 {[%clk 0:03:00.3]} 2. g3 {[%clk 0:02:53]}
2... d5 {[%clk 0:02:58.4]} 3. Bg2 {[%clk 0:02:54.3]} 3... e6 {[%clk 0:02:57.7]}
4. c4 {[%clk 0:02:55.3]} 4... Be7 {[%clk 0:02:57.4]} 5. d4 {[%clk 0:02:56.6]}
5... O-O {[%clk 0:02:58.5]} 6. O-O {[%clk 0:02:58.1]} 6... dxc4 {[%clk
0:02:59.1]} 7. Qa4 {[%clk 0:02:59.1]} 7... a6 {[%clk 0:02:58.1]} 8. Qxc4 {[%clk
0:03:00.4]} 8... b5 {[%clk 0:02:59.6]} 9. Qc2 {[%clk 0:03:01.6]} 9... Bb7 {[%clk
0:02:59.9]} 10. Bf4 {[%clk 0:03:03]} 10... c5 {[%clk 0:02:57.9]} 11. dxc5 {[%clk
0:03:03.5]} 11... Be4 {[%clk 0:02:53]} 12. Qc1 {[%clk 0:03:03.9]} 12... Nc6
{[%clk 0:02:49.6]} 13. Rd1 {[%clk 0:02:59.7]} 13... Qc8 {[%clk 0:02:46]} 14.
Nbd2 {[%clk 0:03:00.6]} 14... Bd5 {[%clk 0:02:45.5]} 15. Nb3 {[%clk 0:02:37.9]}
15... a5 {[%clk 0:02:41.6]} 16. Qc2 {[%clk 0:02:31.6]} 16... a4 {[%clk
0:02:39.3]} 17. Nbd4 {[%clk 0:02:32.6]} 17... Nxd4 {[%clk 0:02:38.9]} 18. Nxd4
{[%clk 0:02:33.8]} 18... Bxc5 {[%clk 0:02:37.6]} 19. Bxd5 {[%clk 0:02:22.8]}
19... Nxd5 {[%clk 0:02:28.5]} 20. Rac1 {[%clk 0:02:20]} 20... Bxd4 {[%clk
0:02:25.6]} 21. Rxd4 {[%clk 0:02:20]} 21... Qxc2 {[%clk 0:02:26]} 22. Rxc2
{[%clk 0:02:21.9]} 22... Rac8 {[%clk 0:02:24.1]} 23. Rxc8 {[%clk 0:02:08.7]}
23... Rxc8 {[%clk 0:02:23.1]} 24. Bd2 {[%clk 0:02:10.2]} 24... f5 {[%clk
0:02:20.3]} 25. e4 {[%clk 0:02:09.6]} 25... fxe4 {[%clk 0:02:20.1]} 26. Rxe4
{[%clk 0:02:11.1]} 26... Rc2 {[%clk 0:02:21.2]} 27. Bc3 {[%clk 0:02:03]} 27...
a3 {[%clk 0:02:14.6]} 28. Bxg7 {[%clk 0:01:32.4]} 28... Kxg7 {[%clk 0:01:51.5]}
29. bxa3 {[%clk 0:01:30.4]} 29... Kf7 {[%clk 0:01:51.9]} 30. Rh4 {[%clk
0:01:25.3]} 30... Kg6 {[%clk 0:01:52.4]} 31. Rg4+ {[%clk 0:01:25.2]} 31... Kf6
{[%clk 0:01:53.1]} 32. Rh4 {[%clk 0:01:22.9]} 32... Rxa2 {[%clk 0:01:53.1]} 33.
Rxh7 {[%clk 0:01:23.6]} 33... Rxa3 {[%clk 0:01:53.9]} 34. Rb7 {[%clk 0:01:23.9]}
34... b4 {[%clk 0:01:54.5]} 35. h4 {[%clk 0:01:25.2]} 35... Rc3 {[%clk
0:01:50.8]} 36. Kf1 {[%clk 0:01:22.9]} 36... b3 {[%clk 0:01:51.3]} 37. Ke2
{[%clk 0:01:23.2]} 37... Rc2+ {[%clk 0:01:51.7]} 38. Kd3 {[%clk 0:01:24.5]}
38... Rxf2 {[%clk 0:01:52.3]} 39. Rxb3 {[%clk 0:01:25.2]} 39... Rf3+ {[%clk
0:01:53.3]} 40. Kc2 {[%clk 0:01:26.3]} 40... Rxb3 {[%clk 0:01:53.6]} 41. Kxb3
{[%clk 0:01:28.2]} 41... Ne3 {[%clk 0:01:54.9]} 0-1

[Event "*** Titled Tuesday 3|2 Blitz"]
[Site "Chess.com"]
[Date "2016.05.03"]
[Round "5"]
[White "Yaacovn"]
[Black "Gergo85"]
[Result "1-0"]
[WhiteElo "2563"]
[BlackElo "2430"]
[TimeControl "180+2"]
[EndTime "12:00:02 PDT"]
[Termination "Yaacovn won by resignation"]

1. d4 {[%clk 0:03:01.9]} 1... f5 {[%clk 0:03:00.8]} 2. Nf3 {[%clk 0:03:03.1]}
2... Nf6 {[%clk 0:03:01.9]} 3. g3 {[%clk 0:03:04.6]} 3... g6 {[%clk 0:03:03.2]}
4. Bg2 {[%clk 0:03:06.1]} 4... Bg7 {[%clk 0:03:04.9]} 5. O-O {[%clk 0:03:07.7]}
5... O-O {[%clk 0:03:06.4]} 6. c4 {[%clk 0:03:09.2]} 6... d6 {[%clk 0:03:08.1]}
7. b3 {[%clk 0:03:10]} 7... c6 {[%clk 0:03:03.8]} 8. Bb2 {[%clk 0:03:02]} 8...
Na6 {[%clk 0:03:04.9]} 9. Nc3 {[%clk 0:03:02.5]} 9... Qc7 {[%clk 0:03:02.9]} 10.
d5 {[%clk 0:03:02.8]} 10... e5 {[%clk 0:02:50.2]} 11. dxe6 {[%clk 0:03:01.3]}
11... Bxe6 {[%clk 0:02:50.9]} 12. Nd4 {[%clk 0:03:02.5]} 12... Bf7 {[%clk
0:02:49.1]} 13. Qd2 {[%clk 0:03:02.7]} 13... Rad8 {[%clk 0:02:45.5]} 14. Rad1
{[%clk 0:02:52]} 14... Rfe8 {[%clk 0:02:46.6]} 15. e3 {[%clk 0:02:52.3]} 15...
Nc5 {[%clk 0:02:44.8]} 16. Qc2 {[%clk 0:02:50.9]} 16... a5 {[%clk 0:02:41.9]}
17. a3 {[%clk 0:02:51.9]} 17... Ng4 {[%clk 0:02:22.3]} 18. Rfe1 {[%clk
0:02:47.9]} 18... Ne5 {[%clk 0:02:14.5]} 19. Nde2 {[%clk 0:02:47]} 19... Qb6
{[%clk 0:01:46.7]} 20. Nc1 {[%clk 0:02:45.8]} 20... a4 {[%clk 0:01:09.4]} 21.
Nxa4 {[%clk 0:02:38.3]} 21... Nxa4 {[%clk 0:01:09.8]} 22. Bxe5 {[%clk 0:02:29]}
22... Rxe5 {[%clk 0:01:10.5]} 23. bxa4 {[%clk 0:02:29.8]} 23... Re7 {[%clk
0:00:53.6]} 24. Nb3 {[%clk 0:02:22.1]} 24... Red7 {[%clk 0:00:38.3]} 25. a5
{[%clk 0:02:20.1]} 25... Qc7 {[%clk 0:00:38.6]} 26. Rd2 {[%clk 0:02:18.4]} 26...
b6 {[%clk 0:00:23.3]} 27. axb6 {[%clk 0:02:05.3]} 27... Qxb6 {[%clk 0:00:25.2]}
28. Red1 {[%clk 0:02:06.7]} 28... Qa6 {[%clk 0:00:21.1]} 29. Nc5 {[%clk
0:02:03.3]} 29... Qxc4 {[%clk 0:00:09.5]} 30. Qxc4 {[%clk 0:02:03.7]} 30... Bxc4
{[%clk 0:00:11.4]} 31. Nxd7 {[%clk 0:02:05.1]} 31... Rxd7 {[%clk 0:00:12.6]} 32.
Rxd6 {[%clk 0:02:05]} 32... Ra7 {[%clk 0:00:12.5]} 33. Rxc6 {[%clk 0:02:04.6]}
33... Bb3 {[%clk 0:00:13.2]} 34. Bd5+ {[%clk 0:02:04.3]} 34... Bxd5 {[%clk
0:00:13.3]} 35. Rxd5 {[%clk 0:02:06.2]} 1-0

[Event "*** Titled Tuesday 3|2 Blitz"]
[Site "Chess.com"]
[Date "2016.05.03"]
[Round "5"]
[White "Zurability"]
[Black "alturas_pacificas"]
[Result "1-0"]
[WhiteElo "2422"]
[BlackElo "2180"]
[TimeControl "180+2"]
[EndTime "12:00:20 PDT"]
[Termination "Zurability won by resignation"]

1. e4 {[%clk 0:03:01.9]} 1... c6 {[%clk 0:02:55.8]} 2. d4 {[%clk 0:03:02.5]}
2... d5 {[%clk 0:02:56.6]} 3. e5 {[%clk 0:03:04]} 3... c5 {[%clk 0:02:57.1]} 4.
c4 {[%clk 0:02:51]} 4... e6 {[%clk 0:02:56.6]} 5. Nf3 {[%clk 0:02:51.9]} 5...
Ne7 {[%clk 0:02:57.2]} 6. Nc3 {[%clk 0:02:52.5]} 6... dxc4 {[%clk 0:02:41.5]} 7.
Bxc4 {[%clk 0:02:50.6]} 7... cxd4 {[%clk 0:02:36.8]} 8. Qxd4 {[%clk 0:02:52.1]}
8... Qxd4 {[%clk 0:02:36.2]} 9. Nxd4 {[%clk 0:02:54]} 9... Nec6 {[%clk
0:02:34.5]} 10. Nxc6 {[%clk 0:02:30.1]} 10... Nxc6 {[%clk 0:02:27.1]} 11. Bf4
{[%clk 0:02:31.6]} 11... Bb4 {[%clk 0:02:18.1]} 12. Rc1 {[%clk 0:02:32.2]} 12...
O-O {[%clk 0:02:18.2]} 13. O-O {[%clk 0:02:33.3]} 13... Rd8 {[%clk 0:02:17.8]}
14. a3 {[%clk 0:02:31.7]} 14... Be7 {[%clk 0:02:11.1]} 15. Rfd1 {[%clk
0:02:31.2]} 15... Bd7 {[%clk 0:02:11]} 16. b4 {[%clk 0:02:26.9]} 16... a6 {[%clk
0:02:08.4]} 17. Ne4 {[%clk 0:02:27.4]} 17... Be8 {[%clk 0:01:48.5]} 18. Nd6
{[%clk 0:02:26.4]} 18... Bxd6 {[%clk 0:01:27.6]} 19. exd6 {[%clk 0:02:28.3]}
19... Rd7 {[%clk 0:01:25.4]} 20. Be3 {[%clk 0:02:21.5]} 20... Rc8 {[%clk
0:01:12.9]} 21. Be2 {[%clk 0:02:18.7]} 21... f6 {[%clk 0:01:10.7]} 22. Bb6
{[%clk 0:02:19.7]} 22... Bf7 {[%clk 0:01:07.7]} 23. Bc7 {[%clk 0:02:03.1]} 23...
Kf8 {[%clk 0:01:02.8]} 24. Bf3 {[%clk 0:01:58.2]} 24... Nd8 {[%clk 0:00:58.2]}
25. Bb6 {[%clk 0:01:53.7]} 25... Rxc1 {[%clk 0:00:57.5]} 26. Rxc1 {[%clk
0:01:55.2]} 26... Ke8 {[%clk 0:00:55.8]} 27. Bc7 {[%clk 0:01:53.4]} 27... g6
{[%clk 0:00:51.4]} 28. a4 {[%clk 0:01:51.8]} 28... e5 {[%clk 0:00:52]} 29. b5
{[%clk 0:01:53.2]} 29... axb5 {[%clk 0:00:52.5]} 30. axb5 {[%clk 0:01:54.2]}
30... f5 {[%clk 0:00:52.4]} 31. Ra1 {[%clk 0:01:52.3]} 31... e4 {[%clk
0:00:51.8]} 32. Be2 {[%clk 0:01:53.1]} 32... Bd5 {[%clk 0:00:42.6]} 33. Ra8
{[%clk 0:01:52.5]} 33... Be6 {[%clk 0:00:43.7]} 34. b6 {[%clk 0:01:49.6]} 34...
Bd5 {[%clk 0:00:44]} 35. Bb5 {[%clk 0:01:50.3]} 35... Bc6 {[%clk 0:00:20]} 36.
Bxc6 {[%clk 0:01:50.7]} 36... bxc6 {[%clk 0:00:21.1]} 37. b7 {[%clk 0:01:52.2]}
1-0

[Event "*** Titled Tuesday 3|2 Blitz"]
[Site "Chess.com"]
[Date "2016.05.03"]
[Round "5"]
[White "jcibarra"]
[Black "Sophiste2"]
[Result "0-1"]
[WhiteElo "2537"]
[BlackElo "2777"]
[TimeControl "180+2"]
[EndTime "12:00:26 PDT"]
[Termination "Sophiste2 won by resignation"]

1. e4 {[%clk 0:03:01.9]} 1... c5 {[%clk 0:02:57.6]} 2. Nf3 {[%clk 0:03:02.4]}
2... d6 {[%clk 0:02:54.8]} 3. d4 {[%clk 0:03:03.6]} 3... cxd4 {[%clk 0:02:55.8]}
4. Nxd4 {[%clk 0:03:05.5]} 4... Nf6 {[%clk 0:02:56.2]} 5. Nc3 {[%clk 0:03:06.9]}
5... e5 {[%clk 0:02:54.1]} 6. Nf3 {[%clk 0:03:03]} 6... h6 {[%clk 0:02:52.4]} 7.
Bc4 {[%clk 0:03:02.9]} 7... Be7 {[%clk 0:02:52.2]} 8. O-O {[%clk 0:03:01.9]}
8... O-O {[%clk 0:02:51]} 9. Nh4 {[%clk 0:02:55]} 9... Kh8 {[%clk 0:02:50.6]}
10. Qf3 {[%clk 0:02:43.3]} 10... Nc6 {[%clk 0:02:49.7]} 11. Qd3 {[%clk
0:02:22.6]} 11... Na5 {[%clk 0:02:32.4]} 12. Bb3 {[%clk 0:02:18]} 12... Nxb3
{[%clk 0:02:29.5]} 13. axb3 {[%clk 0:02:19.9]} 13... Be6 {[%clk 0:02:25.9]} 14.
Rd1 {[%clk 0:02:09]} 14... a6 {[%clk 0:02:25.7]} 15. Nf5 {[%clk 0:02:08.3]}
15... Bxf5 {[%clk 0:02:27]} 16. exf5 {[%clk 0:02:10.2]} 16... Rc8 {[%clk
0:02:28.7]} 17. Ne4 {[%clk 0:02:05]} 17... d5 {[%clk 0:02:27.6]} 18. Nxf6 {[%clk
0:02:02.7]} 18... Bxf6 {[%clk 0:02:29.5]} 19. Qxd5 {[%clk 0:02:02.4]} 19... Qxd5
{[%clk 0:02:22.4]} 20. Rxd5 {[%clk 0:02:04.3]} 20... Rxc2 {[%clk 0:02:24.2]} 21.
Rd7 {[%clk 0:02:00.7]} 21... Rd8 {[%clk 0:02:21.1]} 22. Rxd8+ {[%clk 0:02:01.7]}
22... Bxd8 {[%clk 0:02:23]} 23. Be3 {[%clk 0:01:51.6]} 23... Rxb2 {[%clk
0:02:23.5]} 24. Rd1 {[%clk 0:01:38.2]} 24... Bg5 {[%clk 0:02:23.9]} 25. Bxg5
{[%clk 0:01:38.4]} 25... hxg5 {[%clk 0:02:25.8]} 26. h4 {[%clk 0:01:18.2]} 26...
gxh4 {[%clk 0:02:25]} 27. Rd3 {[%clk 0:01:08.6]} 27... Kh7 {[%clk 0:02:25.2]}
28. f3 {[%clk 0:01:06.6]} 28... Kh6 {[%clk 0:02:25]} 29. Rd6+ {[%clk 0:00:59.3]}
29... f6 {[%clk 0:02:19.7]} 30. Rb6 {[%clk 0:00:59.1]} 30... a5 {[%clk
0:02:20.5]} 31. Rxb7 {[%clk 0:00:40.1]} 31... a4 {[%clk 0:02:21.5]} 32. b4
{[%clk 0:00:41]} 32... h3 {[%clk 0:02:22.6]} 33. Kh2 {[%clk 0:00:27]} 33... hxg2
{[%clk 0:02:21]} 34. b5 {[%clk 0:00:27.2]} 34... a3 {[%clk 0:02:16.4]} 35. Ra7
{[%clk 0:00:25.8]} 35... a2 {[%clk 0:02:17.9]} 36. b6 {[%clk 0:00:11.2]} 36...
Rb1 {[%clk 0:02:16.8]} 0-1

[Event "*** Titled Tuesday 3|2 Blitz"]
[Site "Chess.com"]
[Date "2016.05.03"]
[Round "5"]
[White "FearNoEvil12"]
[Black "Stameny"]
[Result "0-1"]
[WhiteElo "1911"]
[BlackElo "2379"]
[TimeControl "180+2"]
[EndTime "12:00:32 PDT"]
[Termination "Stameny won by resignation"]

1. Nf3 {[%clk 0:02:59.4]} 1... c5 {[%clk 0:03:00.5]} 2. c4 {[%clk 0:02:55]} 2...
Nc6 {[%clk 0:03:01]} 3. Nc3 {[%clk 0:02:35.8]} 3... Nf6 {[%clk 0:03:01.8]} 4. e3
{[%clk 0:02:20.8]} 4... d6 {[%clk 0:02:59.2]} 5. d4 {[%clk 0:02:18.1]} 5... Bd7
{[%clk 0:02:45.8]} 6. Be2 {[%clk 0:02:13.6]} 6... g6 {[%clk 0:02:32.5]} 7. O-O
{[%clk 0:02:15.5]} 7... Bg7 {[%clk 0:02:12.3]} 8. b3 {[%clk 0:02:16.7]} 8... O-O
{[%clk 0:02:12.6]} 9. Bb2 {[%clk 0:02:17.3]} 9... a6 {[%clk 0:02:04.2]} 10. Rc1
{[%clk 0:02:16.2]} 10... Rb8 {[%clk 0:02:04.3]} 11. h3 {[%clk 0:02:13.7]} 11...
Qa5 {[%clk 0:02:05.1]} 12. Qd2 {[%clk 0:02:11.6]} 12... Rfc8 {[%clk 0:02:05.3]}
13. a3 {[%clk 0:02:10.9]} 13... h5 {[%clk 0:01:54.2]} 14. Rfd1 {[%clk
0:02:08.1]} 14... Bh6 {[%clk 0:01:42.9]} 15. dxc5 {[%clk 0:02:06.2]} 15... dxc5
{[%clk 0:01:43.4]} 16. Nd5 {[%clk 0:02:03.5]} 16... Qxd2 {[%clk 0:01:32.2]} 17.
Nxf6+ {[%clk 0:02:03.4]} 17... exf6 {[%clk 0:01:32.1]} 18. Rxd2 {[%clk
0:02:05.3]} 18... Be6 {[%clk 0:01:30.4]} 19. Bxf6 {[%clk 0:02:05.1]} 19... Na5
{[%clk 0:01:30]} 20. Rb1 {[%clk 0:01:51.3]} 20... b5 {[%clk 0:01:25.7]} 21. cxb5
{[%clk 0:01:50.3]} 21... axb5 {[%clk 0:01:27.2]} 22. Ng5 {[%clk 0:01:41.1]}
22... Bxg5 {[%clk 0:01:25.5]} 23. Bxg5 {[%clk 0:01:40.2]} 23... Nxb3 {[%clk
0:01:26.9]} 24. Rdb2 {[%clk 0:01:37.9]} 24... c4 {[%clk 0:01:28.4]} 25. Bf6
{[%clk 0:01:22.8]} 25... Rb7 {[%clk 0:01:27.4]} 26. Rc2 {[%clk 0:01:22.3]} 26...
Ra7 {[%clk 0:01:21.7]} 27. Bb2 {[%clk 0:01:05.1]} 27... Bf5 {[%clk 0:01:21.9]}
28. Bd1 {[%clk 0:01:01.5]} 28... Bxc2 {[%clk 0:01:18.7]} 29. Bxc2 {[%clk
0:01:02.3]} 29... Rd8 {[%clk 0:01:14.9]} 30. Rd1 {[%clk 0:01:01.2]} 30... Rxd1+
{[%clk 0:01:14.9]} 31. Bxd1 {[%clk 0:01:02.5]} 31... Rd7 {[%clk 0:01:16.6]} 32.
Bxb3 {[%clk 0:01:00.1]} 32... cxb3 {[%clk 0:01:16.5]} 33. Bc3 {[%clk 0:00:56.4]}
33... Rd3 {[%clk 0:01:15.7]} 34. Bf6 {[%clk 0:00:54.4]} 34... Rd2 {[%clk
0:01:17.1]} 0-1

[Event "*** Titled Tuesday 3|2 Blitz"]
[Site "Chess.com"]
[Date "2016.05.03"]
[Round "5"]
[White "ChadaevNikolay"]
[Black "hypert"]
[Result "1-0"]
[WhiteElo "2555"]
[BlackElo "2351"]
[TimeControl "180+2"]
[EndTime "12:00:37 PDT"]
[Termination "ChadaevNikolay won by resignation"]

1. d4 {[%clk 0:03:01.9]} 1... Nf6 {[%clk 0:02:59.7]} 2. c4 {[%clk 0:03:02.5]}
2... e6 {[%clk 0:03:00.9]} 3. Nf3 {[%clk 0:03:03.5]} 3... d5 {[%clk 0:03:01.5]}
4. Nc3 {[%clk 0:03:03.9]} 4... Bb4 {[%clk 0:03:01.7]} 5. Bg5 {[%clk 0:03:02.9]}
5... Nbd7 {[%clk 0:02:51.7]} 6. e3 {[%clk 0:03:00.7]} 6... c5 {[%clk 0:02:47]}
7. cxd5 {[%clk 0:03:00.7]} 7... exd5 {[%clk 0:02:47.5]} 8. Bd3 {[%clk
0:03:01.7]} 8... Qa5 {[%clk 0:02:44.1]} 9. Qc2 {[%clk 0:03:01.9]} 9... O-O
{[%clk 0:02:35.7]} 10. O-O {[%clk 0:03:01.3]} 10... h6 {[%clk 0:02:24.5]} 11.
Bh4 {[%clk 0:02:58.7]} 11... c4 {[%clk 0:02:23.5]} 12. Bf5 {[%clk 0:02:58.6]}
12... Bxc3 {[%clk 0:02:20.2]} 13. bxc3 {[%clk 0:02:58.9]} 13... Nb6 {[%clk
0:02:17.6]} 14. Bxc8 {[%clk 0:02:53.9]} 14... Raxc8 {[%clk 0:02:09.7]} 15. Bxf6
{[%clk 0:02:54.7]} 15... gxf6 {[%clk 0:02:10.6]} 16. Nh4 {[%clk 0:02:48.6]}
16... Qa4 {[%clk 0:01:45.4]} 17. Qf5 {[%clk 0:02:46.6]} 17... Qc6 {[%clk
0:01:40.9]} 18. Qh5 {[%clk 0:02:46]} 18... f5 {[%clk 0:01:32.7]} 19. Nxf5 {[%clk
0:02:46.3]} 19... Qf6 {[%clk 0:01:30.7]} 20. Nxh6+ {[%clk 0:02:45.1]} 20... Kg7
{[%clk 0:01:31.4]} 21. Nf5+ {[%clk 0:02:45.9]} 21... Kg8 {[%clk 0:01:32.5]} 22.
f4 {[%clk 0:02:45.8]} 22... Rfe8 {[%clk 0:01:29.3]} 23. Rf3 {[%clk 0:02:45.7]}
23... Re6 {[%clk 0:01:20.1]} 24. Rg3+ {[%clk 0:02:43.1]} 24... Kf8 {[%clk
0:01:21.1]} 25. Qh7 {[%clk 0:02:42.8]} 25... Ke8 {[%clk 0:01:17.9]} 26. Ng7+
{[%clk 0:02:36.2]} 26... Ke7 {[%clk 0:01:15.3]} 27. Nxe6 {[%clk 0:02:36.5]}
27... Qxe6 {[%clk 0:01:17.2]} 28. f5 {[%clk 0:02:35.7]} 28... Qf6 {[%clk
0:01:17.4]} 29. Rf1 {[%clk 0:02:30.5]} 29... Na4 {[%clk 0:01:16.8]} 30. e4
{[%clk 0:02:27]} 30... dxe4 {[%clk 0:01:08.2]} 31. Rf4 {[%clk 0:02:25.8]} 31...
Nxc3 {[%clk 0:00:57.5]} 32. Rxc3 {[%clk 0:02:24]} 32... Rh8 {[%clk 0:00:57.5]}
33. Rxe4+ {[%clk 0:02:23.7]} 33... Kd7 {[%clk 0:00:48.2]} 34. Qxh8 {[%clk
0:02:16.5]} 34... Qxh8 {[%clk 0:00:50.1]} 35. Rxc4 {[%clk 0:02:17]} 35... Qh5
{[%clk 0:00:50.2]} 36. g4 {[%clk 0:02:16.3]} 36... Qh3 {[%clk 0:00:48.3]} 37.
Rc2 {[%clk 0:02:14.7]} 37... b5 {[%clk 0:00:37.6]} 38. Rce2 {[%clk 0:02:13.7]}
38... Qd3 {[%clk 0:00:35.5]} 39. Kg2 {[%clk 0:02:11.2]} 39... a5 {[%clk
0:00:33.6]} 40. h4 {[%clk 0:02:12.2]} 40... b4 {[%clk 0:00:34.2]} 41. h5 {[%clk
0:02:13.2]} 41... Qa6 {[%clk 0:00:29.1]} 42. Re7+ {[%clk 0:02:11]} 42... Kd6
{[%clk 0:00:30]} 43. R2e6+ {[%clk 0:02:10.3]} 1-0

[Event "*** Titled Tuesday 3|2 Blitz"]
[Site "Chess.com"]
[Date "2016.05.03"]
[Round "5"]
[White "ShimanovAlex"]
[Black "ZivkovicN"]
[Result "1-0"]
[WhiteElo "2653"]
[BlackElo "2385"]
[TimeControl "180+2"]
[EndTime "12:00:39 PDT"]
[Termination "ShimanovAlex won by resignation"]

1. d4 {[%clk 0:03:00.4]} 1... Nf6 {[%clk 0:02:55.9]} 2. Nf3 {[%clk 0:03:01.6]}
2... e6 {[%clk 0:02:56.9]} 3. Bf4 {[%clk 0:03:02]} 3... c5 {[%clk 0:02:53.4]} 4.
e3 {[%clk 0:03:02.9]} 4... Nc6 {[%clk 0:02:52.2]} 5. Nbd2 {[%clk 0:03:01.7]}
5... d5 {[%clk 0:02:52.4]} 6. c3 {[%clk 0:03:02.4]} 6... Bd6 {[%clk 0:02:53.1]}
7. Bg3 {[%clk 0:03:02.9]} 7... O-O {[%clk 0:02:53.1]} 8. Bd3 {[%clk 0:03:04.2]}
8... Qe7 {[%clk 0:02:47.6]} 9. Ne5 {[%clk 0:03:04.8]} 9... Nd7 {[%clk
0:02:46.8]} 10. Nxd7 {[%clk 0:03:05.4]} 10... Bxd7 {[%clk 0:02:46.9]} 11. Bxd6
{[%clk 0:03:05.8]} 11... Qxd6 {[%clk 0:02:47.5]} 12. dxc5 {[%clk 0:03:06.6]}
12... Qxc5 {[%clk 0:02:47.7]} 13. Bxh7+ {[%clk 0:03:07.4]} 13... Kxh7 {[%clk
0:02:38.3]} 14. Qh5+ {[%clk 0:03:09.1]} 14... Kg8 {[%clk 0:02:26.9]} 15. Ne4
{[%clk 0:03:11]} 15... g6 {[%clk 0:01:53.3]} 16. Nxc5 {[%clk 0:03:07.2]} 16...
gxh5 {[%clk 0:01:54.6]} 17. Nxd7 {[%clk 0:03:08.4]} 17... Rfd8 {[%clk
0:01:44.3]} 18. Nf6+ {[%clk 0:03:09.2]} 18... Kf8 {[%clk 0:01:42.4]} 19. Nxh5
{[%clk 0:03:11.1]} 19... b5 {[%clk 0:01:41]} 20. O-O {[%clk 0:03:07.5]} 20... a5
{[%clk 0:01:42]} 21. a3 {[%clk 0:03:07.7]} 21... Rdc8 {[%clk 0:01:38.9]} 22. Nf4
{[%clk 0:03:07]} 22... Ne5 {[%clk 0:01:40]} 23. Rfd1 {[%clk 0:03:05.4]} 23...
Ke7 {[%clk 0:01:40.4]} 24. Nd3 {[%clk 0:03:05.9]} 24... Nc4 {[%clk 0:01:39.5]}
25. a4 {[%clk 0:03:01]} 25... bxa4 {[%clk 0:01:38.5]} 26. Rxa4 {[%clk
0:03:02.1]} 26... Rab8 {[%clk 0:01:40.2]} 27. Ra2 {[%clk 0:03:02.7]} 27... Rb3
{[%clk 0:01:40.3]} 28. h4 {[%clk 0:03:00.7]} 28... a4 {[%clk 0:01:34.3]} 29.
Rxa4 {[%clk 0:02:59.3]} 29... Nxb2 {[%clk 0:01:35.3]} 30. Ra7+ {[%clk
0:02:59.6]} 30... Kf6 {[%clk 0:01:34.4]} 31. Nxb2 {[%clk 0:02:59.7]} 31... Rxb2
{[%clk 0:01:36.3]} 32. Rd4 {[%clk 0:03:01.1]} 32... e5 {[%clk 0:00:51.8]} 33.
Rxd5 {[%clk 0:03:00.1]} 33... Rxc3 {[%clk 0:00:53.4]} 34. Rd6+ {[%clk
0:03:00.9]} 34... Kg7 {[%clk 0:00:54.9]} 35. Rd1 {[%clk 0:02:52.4]} 35... Rcc2
{[%clk 0:00:54.2]} 36. Rf1 {[%clk 0:02:53.5]} 36... Kg6 {[%clk 0:00:51.8]} 37.
g3 {[%clk 0:02:47.3]} 37... e4 {[%clk 0:00:49.3]} 38. Ra5 {[%clk 0:02:44.8]}
38... f5 {[%clk 0:00:50]} 39. Ra6+ {[%clk 0:02:44.5]} 39... Kg7 {[%clk
0:00:50.8]} 40. Kg2 {[%clk 0:02:45.7]} 40... Re2 {[%clk 0:00:48.1]} 41. Kg1
{[%clk 0:02:22.3]} 41... Kf7 {[%clk 0:00:47.8]} 42. h5 {[%clk 0:02:17]} 42...
Kg7 {[%clk 0:00:45.7]} 43. Rg6+ {[%clk 0:02:16.2]} 43... Kf7 {[%clk 0:00:43.6]}
44. g4 {[%clk 0:02:16]} 44... fxg4 {[%clk 0:00:33.4]} 45. Rxg4 {[%clk
0:02:17.9]} 45... Rb4 {[%clk 0:00:33.1]} 46. Kg2 {[%clk 0:02:16.3]} 46... Rc2
{[%clk 0:00:31.3]} 47. h6 {[%clk 0:02:12]} 1-0